Workbook

Sheet 1
A1: Школа | B1: МБОУ "СОШ №2" | E1: Отд./корп | I1: День | J1: XII
A3: Прием пищи | B3: Раздел | C3: № рец. | D3: Блюдо | E3: Выход, г | F3: Цена | G3: Калорийность | H3: Белки | I3: Жиры | J3: Углеводы
A4: Завтрак | B4: закуска | C4: ='[1] 7-10'!A177 -> 54-9з-2020 | D4: ='[1] 7-10'!B177 -> Салат из белокочанной капусты с морковью, яблоками и растительным маслом | E4: ='[1] 7-10'!C177 -> 60 | F4: 9.57 | G4: 72.5 | H4: ='[1] 7-10'!D177 -> 0.80 | I4: ='[1] 7-10'!E177 -> 6.10 | J4: ='[1] 7-10'!F177 -> 3.60
B5: гор.блюдо | C5: ='[1] 7-10'!A178 -> 54-1т-2020 | D5: ='[1] 7-10'!B178 -> Запеканка из творога | E5: ='[1] 7-10'!C178 -> 150 | F5: 52.86 | G5: 287.3 | H5: ='[1] 7-10'!D178 -> 10.38 | I5: ='[1] 7-10'!E178 -> 9.38 | J5: ='[1] 7-10'!F178 -> 29.25
B6: =$C$6 -> Пром. | C6: ='[1] 7-10'!A179 -> Пром. | D6: ='[1] 7-10'!B179 -> Молоко сгущенное с сахаром | E6: ='[1] 7-10'!C179 -> 20 | G6: 65.5 | H6: ='[1] 7-10'!D179 -> 1.44 | I6: ='[1] 7-10'!E179 -> 1.70 | J6: ='[1] 7-10'!F179 -> 11.10
B7: хлеб | C7: пром | D7: Хлеб ржаной, пшеничный | E7: 40 | F7: 3.72 | G7: 81.1 | H7: 2.82 | I7: 0.36 | J7: 16.54
B8: ='[2]1'!$B$7 -> гор.напиток | C8: ='[1] 7-10'!A180 -> 54-3гн-2020 | D8: ='[1] 7-10'!B180 -> Чай с лимоном и сахаром | E8: 214 | F8: 4.69 | G8: 27.9 | H8: 0.20 | I8: 0.10 | J8: 6.60
B9: сладкое | C9: пром | D9: Сушка простая | E9: 30 | F9: 6.92 | G9: 26.5 | H9: 0.80 | I9: 0.39 | J9: 3.50
A10: Завтрак 2 | B10: фрукты
A13: Обед | B13: закуска
B14: 1 блюдо
B15: 2 блюдо
B16: гарнир
B17: сладкое
B18: хлеб бел.
B19: хлеб черн.
E21: =SUM(E4:E20) -> 514.00 | F21: =SUM(F4:F20) -> 77.76 | G21: 560.80 | H21: 16.44 | I21: 18.03 | J21: 70.59
